Workbook

Sheet ФинЧасть (hidden)
A1: Командировка продавца-кассира с 04.06 по 19.06 Елена Бузмакова 8-900-375-86-64 (Ср 30000) ЕКБ Белинского В ФОТ для бюджета на выезд (Ср.ЗП)*1,5 =45000+ндфл 2243 (за месячную норму часов+переработки)
A2: Командировка ЗУМ с 04.06 по 19.06 Ксения Распопина 8-922-210-34-46 (Ср 39000) ЕКБ Белинского В ФОТ для бюджета на выезд (Ср.ЗП)*1,5 =58500+ндфл 2550 (за месячную норму часов+переработки)
A3: Командировка продавца с ... по ... Крокодилов Сергей Иванович 8-900-041-65-94(Ср 29100), ЕКБ Гранат, В ФОТ для бюджета на выезд (Ср.ЗП)*1,5=43650+ндфл 2243 руб (за месячную норму часов+переработки)
A4: Командировка Ст. кладовщик с 27.05 по 17.06 Фазилов Илья Ибрагимович 8-963-446-15-63(Ср 31500), ЕКБ Грибоедова, В ФОТ для бюджета на выезд (Ср.ЗП)*1,5=47250+ндфл 2691 руб (за месячную норму часов+переработки)
A5: Командировка кладовщик с ... по ... Грачев Игорь Михайлович 8-977-287-21-88(Ср 34900), МСК Мытищи Селезнева, В ФОТ для бюджета на выезд (Ср.ЗП)*1,5=52350+ндфл 1950 руб (за месячную норму часов+переработки)
A6: Командировка ЗУМ с 27.05 по 17.06 Давыдова Наталья Игоревна 8-901-71-51-499(Ср 48500) МСК Одинцово В ФОТ для бюджета на выезд Ср.ЗП*1,5 =72750+ндфл 2845 руб(за месячную норму часов+переработки)
A7: Командировка Ст. кассира с 08.06 по 17.06 Бондаренко Александра Леонидовна 8-982-649-60-66(Ср 32000) ЕКБ Гранат В ФОТ для бюджета на выезд Ср.ЗП*1,5 =24000+ндфл 2550(за 88 часов) | F7: 88 | G7: =32000*F7/176*1.5 -> 24000
A8: Командировка Ст. кассира с 25.08 по 08.09 Шелковникова Татьяна Павловна 8-919-766-50-10(Ср 42530) МСК Раменское Михалевича В ФОТ для бюджета на выезд Ср.ЗП*1,5 = 55821 + ндфл 2600(за 154 час) | E8: 14 | F8: =E8*11 -> 154 | G8: =42530*F8/176*1.5 -> 55820.625
A9: Командировка Ст. кассира с 04.06 по 17.06 Татьяна Храмова 8-982-611-41-75 (Ср 32000) ЕКБ Белинского В ФОТ для бюджета на выезд (Ср.ЗП)*1,5 =18000+ндфл 2550(за 66 часов) | F9: 66 | G9: =32000*F9/176*1.5 -> 18000
A10: Командировка ЗУМ с 04.06 по 19.06 Ильиных Евгений 8-982-638-62-01 (Ср 39000 ) ЕКБ Мегаполис В ФОТ для бюджета на выезд (Ср.ЗП)*1,5 =58500+ндфл 2550 (за месячную норму часов+переработки)
A11: Командировка ЗУМ с 04.06 по 19.06 Никита Ячменников 8-908-919-25-31 (Ср 39000) ЕКБ Бабушкина В ФОТ для бюджета на выезд (Ср.ЗП)*1,5 =58500+ндфл 2550 (за месячную норму часов+переработки)

Sheet Письмо
A3: ТЕКСТ | B3: =Формулы!A30 -> Уважаемые Управляющие, довожу до вашего сведения о предстоящей командировке ваших сотрудников: Петров Петр с 15.01 по 08.02 direktor-179 Иванов Иван с 0 по 0 direktor-180 Сидоров Сидр с 0 по 0 direktor-181 Василий Алибабаевич с 0 по 0 direktor-182 Доцент с 0 по 0 direktor-183 Котов Кот с 0 по 0 direktor-184 Смиронов Смирн с 0 по 0 direktor-185 ВАКАНТ с 0 по 0 direktor-186 ВАКАНТ с 0 по 0 direktor-187 Вика с 0 по 0 direktor-188 Светлогор с 0 по 0 direktor-189 ВАКАНТ с 0 по 0 direktor-190 Грачев Грач с 15.01 по 08.02 direktor-191 Карпов Карп с 0 по 0 direktor-192 ВАКАНТ с 0 по 0 direktor-193 ВАКАНТ с 0 по 0 direktor-194 ВАКАНТ с 15.01 по 08.02 direktor-195 Митя с 0 по 0 direktor-196 Настя с 0 по 0 direktor-197 Коля с 0 по 0 direktor-198 Игорь с 0 по 0 direktor-199 Викор с 0 по 0 direktor-200 Дима с 0 по 0 direktor-201 Саша с 0 по 0 direktor-202 Даты указаны без учета затраченного времени на дорогу к месту командировки и возвращения из нее: только даты приезда на проект и отъезда с него. Точную дату выезда в командировку и дату возвращения из нее Ваш сотрудник предоставит после покупки билетов. Необходимо учесть данный интервал дат при составлении табеля рабочего времени в Вашем магазине: один день до и два дня после обязательные выходные! Прошу подтвердить получение данного письма. | C3: =_xlfn.TEXTJOIN(" ",1,IFERROR(INDEX(Данные!$B$2:$M$25,(IF(Данные!$G$2:$G$25<>"",ROW(Данные!$G$2:$G$25)-1,"")),{1,7,6,5,12}),"")) -> Петров Петр 08.02 15.01 direktor-179 Грачев Грач 08.02 15.01 direktor-191 ВАКАНТ 08.02 15.01 direktor-195

Sheet Данные
A1: № | B1: ФИО | C1: Должность | D1: Телефон | E1: Город | F1: email | G1: Начало | H1: Конец | I1: ЗП | J1: Коэф | K1: Команд. ЗП | L1: НДФЛ
A2: =ROW(2:2)-1 -> 1 | B2: Петров Петр | C2: ЗУМ | D2: 8-888-111 | E2: Саратов | F2: direktor-179 | G2: 15.01 | H2: 08.02 | I2: 33 | J2: 1.5 | K2: =I2*J2 -> 49.5 | L2: 2 | M2: =CHAR(10) -> 
A3: =ROW(3:3)-1 -> 2 | B3: Иванов Иван | C3: ЗУМ | D3: 8-888-112 | E3: Самара | F3: direktor-180 | I3: 42 | J3: 1.5 | K3: =I3*J3 -> 63 | L3: 28 | M3: =CHAR(10) -> 
A4: =ROW(4:4)-1 -> 3 | B4: Сидоров Сидр | C4: ПК | D4: 8-888-113 | E4: Самара | F4: direktor-181 | I4: 22 | J4: 1.5 | K4: =I4*J4 -> 33 | L4: 3 | M4: =CHAR(10) -> 
A5: =ROW(5:5)-1 -> 4 | B5: Василий Алибабаевич | C5: ЗУМ | D5: 8-888-114 | E5: Пушкин | F5: direktor-182 | I5: 32 | J5: 1.5 | K5: =I5*J5 -> 48 | L5: 3 | M5: =CHAR(10) -> 
A6: =ROW(6:6)-1 -> 5 | B6: Доцент | C6: БОСС | D6: 8-888-115 | E6: Пушкино | F6: direktor-183 | I6: 322 | J6: 1.5 | K6: =I6*J6 -> 483 | L6: 22 | M6: =CHAR(10) -> 
A7: =ROW(7:7)-1 -> 6 | B7: Котов Кот | C7: ЗУМ | D7: 8-888-116 | E7: Екатеринбург | F7: direktor-184 | I7: 45 | J7: 1.5 | K7: =I7*J7 -> 67.5 | L7: 27 | M7: =CHAR(10) -> 
A8: =ROW(8:8)-1 -> 7 | B8: Смиронов Смирн | C8: ПК | D8: 8-888-117 | E8: Челябинск | F8: direktor-185 | I8: 30 | J8: 1.5 | K8: =I8*J8 -> 45 | L8: 15 | M8: =CHAR(10) -> 
A9: =ROW(9:9)-1 -> 8 | B9: ВАКАНТ | D9: 8-888-118 | F9: direktor-186 | M9: =CHAR(10) -> 
A10: =ROW(10:10)-1 -> 9 | B10: ВАКАНТ | D10: 8-888-119 | F10: direktor-187 | M10: =CHAR(10) -> 
A11: =ROW(11:11)-1 -> 10 | B11: Вика | C11: ПК | D11: 8-888-120 | E11: Новосибирск | F11: direktor-188 | I11: 43 | J11: 1.5 | K11: =I11*J11 -> 64.5 | L11: 21 | M11: =CHAR(10) -> 
A12: =ROW(12:12)-1 -> 11 | B12: Светлогор | C12: ЗУМ | D12: 8-888-121 | E12: Новокузнецк | F12: direktor-189 | I12: 55 | J12: 1.5 | K12: =I12*J12 -> 82.5 | L12: 2 | M12: =CHAR(10) -> 
A13: =ROW(13:13)-1 -> 12 | B13: ВАКАНТ | D13: 8-888-122 | F13: direktor-190 | M13: =CHAR(10) -> 
A14: =ROW(14:14)-1 -> 13 | B14: Грачев Грач | C14: Кладовщик | D14: 8-888-123 | E14: Москва | F14: direktor-191 | G14: 15.01 | H14: 08.02 | I14: 46 | J14: 1.5 | K14: =I14*J14 -> 69 | L14: 2 | M14: =CHAR(10) -> 
A15: =ROW(15:15)-1 -> 14 | B15: Карпов Карп | D15: 8-888-124 | F15: direktor-192 | I15: 26 | J15: 1.5 | K15: =I15*J15 -> 39 | L15: 2 | M15: =CHAR(10) -> 
A16: =ROW(16:16)-1 -> 15 | B16: ВАКАНТ | D16: 8-888-125 | F16: direktor-193 | M16: =CHAR(10) -> 
A17: =ROW(17:17)-1 -> 16 | B17: ВАКАНТ | D17: 8-888-126 | F17: direktor-194 | M17: =CHAR(10) -> 
A18: =ROW(18:18)-1 -> 17 | B18: ВАКАНТ | D18: 8-888-127 | F18: direktor-195 | G18: 15.01 | H18: 08.02 | M18: =CHAR(10) -> 
A19: =ROW(19:19)-1 -> 18 | B19: Митя | C19: Ст. кладовщик | D19: 8-888-128 | E19: С.-Петербург | F19: direktor-196 | I19: 40 | J19: 1.5 | K19: =I19*J19 -> 60 | L19: 2 | M19: =CHAR(10) -> 
A20: =ROW(20:20)-1 -> 19 | B20: Настя | C20: Ст. кладовщик | D20: 8-888-129 | E20: Екатеринбург | F20: direktor-197 | I20: 41 | J20: 1.5 | K20: =I20*J20 -> 61.5 | L20: 22 | M20: =CHAR(10) -> 
A21: =ROW(21:21)-1 -> 20 | B21: Коля | C21: Ст.кладовщик | D21: 8-888-130 | E21: Москва | F21: direktor-198 | I21: 39 | J21: 1.5 | K21: =I21*J21 -> 58.5 | L21: 2 | M21: =CHAR(10) -> 
A22: =ROW(22:22)-1 -> 21 | B22: Игорь | C22: Ст.кладовщик | D22: 8-888-131 | E22: Москва | F22: direktor-199 | I22: 24 | J22: 1.5 | K22: =I22*J22 -> 36 | L22: 3 | M22: =CHAR(10) -> 
A23: =ROW(23:23)-1 -> 22 | B23: Викор | C23: Кладовщик | D23: 8-888-132 | E23: Тагил | F23: direktor-200 | I23: 35 | J23: 1.5 | K23: =I23*J23 -> 52.5 | L23: 1.7 | M23: =CHAR(10) -> 
A24: =ROW(24:24)-1 -> 23 | B24: Дима | C24: ст.кладовщик | D24: 8-888-133 | E24: Томск | F24: direktor-201 | I24: 25 | J24: 1.5 | K24: =I24*J24 -> 37.5 | L24: 2 | M24: =CHAR(10) -> 
A25: =ROW(25:25)-1 -> 24 | B25: Саша | C25: ст.кладовщик | D25: 8-888-134 | E25: Ставрополь | F25: direktor-202 | I25: 14 | J25: 1.5 | K25: =I25*J25 -> 21 | L25: 3 | M25: =CHAR(10) -> 
J26: =IF(M26<0,0,#REF!) -> 0 | K26: =I26*1.5/176*J26 -> 0 | M26: =H26-G26-1 -> -1
J27: =IF(M27<0,0,#REF!) -> 0 | K27: =I27*1.5/176*J27 -> 0 | M27: =H27-G27-1 -> -1
J28: =IF(M28<0,0,#REF!) -> 0 | K28: =I28*1.5/176*J28 -> 0 | M28: =H28-G28-1 -> -1

Sheet Формулы
A2: =CONCATENATE(B2," ",C2," ",D2," ",E2," ",F2," ",F30," ",G2,H2,", ",I2,", ",J2," ",K2,L2," ",M2," ",N2,O2," ",P2," ",Q2," ",R2," ",S2," ",T2," ",U2) -> Командировка ЗУМ с 15.01 по 08.02, Петров Петр, 8-888-111 (ср.33 ), Саратов, в ФОТ для бюджета на выезд (Ср.ЗП)*1,5 = 49,5 + ндфл 2 руб (за месячную норму часов+переработки) | B2: Командировка | C2: =Данные!C2 -> ЗУМ | D2: с | E2: =Данные!G2 -> 15.01 | F2: по | G2: =Данные!H2 -> 08.02 | I2: =Данные!B2 -> Петров Петр | J2: =Данные!D2 -> 8-888-111 | K2: (ср. | L2: =Данные!I2 -> 33 | M2: ), | N2: =Данные!E2 -> Саратов | O2: , | P2: в ФОТ для бюджета на выезд (Ср.ЗП)*1,5 = | Q2: =Данные!K2 -> 49.5 | R2: + ндфл | S2: =Данные!L2 -> 2 | T2: руб | U2: (за месячную норму часов+переработки) | X2: =Данные!F2 -> direktor-179
A3: =CONCATENATE(B3," ",C3," ",D3," ",E3," ",F3," ",F31," ",G3,H3,", ",I3,", ",J3," ",K3,L3," ",M3," ",N3,O3," ",P3," ",Q3," ",R3," ",S3," ",T3," ",U3) -> Командировка ЗУМ с 0 по 0, Иванов Иван, 8-888-112 (ср.42 ), Самара, в ФОТ для бюджета на выезд (Ср.ЗП)*1,5 = 63 + ндфл 28 руб (за месячную норму часов+переработки) | B3: Командировка | C3: =Данные!C3 -> ЗУМ | D3: с | E3: =Данные!G3 -> 00:00:00 | F3: по | G3: =Данные!H3 -> 00:00:00 | I3: =Данные!B3 -> Иванов Иван | J3: =Данные!D3 -> 8-888-112 | K3: (ср. | L3: =Данные!I3 -> 42 | M3: ), | N3: =Данные!E3 -> Самара | O3: , | P3: в ФОТ для бюджета на выезд (Ср.ЗП)*1,5 = | Q3: =Данные!K3 -> 63 | R3: + ндфл | S3: =Данные!L3 -> 28 | T3: руб | U3: (за месячную норму часов+переработки) | X3: =Данные!F3 -> direktor-180
A4: =CONCATENATE(B4," ",C4," ",D4," ",E4," ",F4," ",F32," ",G4,H4,", ",I4,", ",J4," ",K4,L4," ",M4," ",N4,O4," ",P4," ",Q4," ",R4," ",S4," ",T4," ",U4) -> Командировка ПК с 0 по 0, Сидоров Сидр, 8-888-113 (ср.22 ), Самара, в ФОТ для бюджета на выезд (Ср.ЗП)*1,5 = 33 + ндфл 3 руб (за месячную норму часов+переработки) | B4: Командировка | C4: =Данные!C4 -> ПК | D4: с | E4: =Данные!G4 -> 00:00:00 | F4: по | G4: =Данные!H4 -> 00:00:00 | I4: =Данные!B4 -> Сидоров Сидр | J4: =Данные!D4 -> 8-888-113 | K4: (ср. | L4: =Данные!I4 -> 22 | M4: ), | N4: =Данные!E4 -> Самара | O4: , | P4: в ФОТ для бюджета на выезд (Ср.ЗП)*1,5 = | Q4: =Данные!K4 -> 33 | R4: + ндфл | S4: =Данные!L4 -> 3 | T4: руб | U4: (за месячную норму часов+переработки) | X4: =Данные!F4 -> direktor-181
A5: =CONCATENATE(B5," ",C5," ",D5," ",E5," ",F5," ",F33," ",G5,H5,", ",I5,", ",J5," ",K5,L5," ",M5," ",N5,O5," ",P5," ",Q5," ",R5," ",S5," ",T5," ",U5) -> Командировка ЗУМ с 0 по 0, Василий Алибабаевич, 8-888-114 (ср.32 ), Пушкин, в ФОТ для бюджета на выезд (Ср.ЗП)*1,5 = 48 + ндфл 3 руб (за месячную норму часов+переработки) | B5: Командировка | C5: =Данные!C5 -> ЗУМ | D5: с | E5: =Данные!G5 -> 00:00:00 | F5: по | G5: =Данные!H5 -> 00:00:00 | I5: =Данные!B5 -> Василий Алибабаевич | J5: =Данные!D5 -> 8-888-114 | K5: (ср. | L5: =Данные!I5 -> 32 | M5: ), | N5: =Данные!E5 -> Пушкин | O5: , | P5: в ФОТ для бюджета на выезд (Ср.ЗП)*1,5 = | Q5: =Данные!K5 -> 48 | R5: + ндфл | S5: =Данные!L5 -> 3 | T5: руб | U5: (за месячную норму часов+переработки) | X5: =Данные!F5 -> direktor-182
A6: =CONCATENATE(B6," ",C6," ",D6," ",E6," ",F6," ",F34," ",G6,H6,", ",I6,", ",J6," ",K6,L6," ",M6," ",N6,O6," ",P6," ",Q6," ",R6," ",S6," ",T6," ",U6) -> Командировка БОСС с 0 по 0, Доцент, 8-888-115 (ср.322 ), Пушкино, в ФОТ для бюджета на выезд (Ср.ЗП)*1,5 = 483 + ндфл 22 руб (за месячную норму часов+переработки) | B6: Командировка | C6: =Данные!C6 -> БОСС | D6: с | E6: =Данные!G6 -> 00:00:00 | F6: по | G6: =Данные!H6 -> 00:00:00 | I6: =Данные!B6 -> Доцент | J6: =Данные!D6 -> 8-888-115 | K6: (ср. | L6: =Данные!I6 -> 322 | M6: ), | N6: =Данные!E6 -> Пушкино | O6: , | P6: в ФОТ для бюджета на выезд (Ср.ЗП)*1,5 = | Q6: =Данные!K6 -> 483 | R6: + ндфл | S6: =Данные!L6 -> 22 | T6: руб | U6: (за месячную норму часов+переработки) | X6: =Данные!F6 -> direktor-183
A7: =CONCATENATE(B7," ",C7," ",D7," ",E7," ",F7," ",F35," ",G7,H7,", ",I7,", ",J7," ",K7,L7," ",M7," ",N7,O7," ",P7," ",Q7," ",R7," ",S7," ",T7," ",U7) -> Командировка ЗУМ с 0 по 0, Котов Кот, 8-888-116 (ср.45 ), Екатеринбург, в ФОТ для бюджета на выезд (Ср.ЗП)*1,5 = 67,5 + ндфл 27 руб (за месячную норму часов+переработки) | B7: Командировка | C7: =Данные!C7 -> ЗУМ | D7: с | E7: =Данные!G7 -> 00:00:00 | F7: по | G7: =Данные!H7 -> 00:00:00 | I7: =Данные!B7 -> Котов Кот | J7: =Данные!D7 -> 8-888-116 | K7: (ср. | L7: =Данные!I7 -> 45 | M7: ), | N7: =Данные!E7 -> Екатеринбург | O7: , | P7: в ФОТ для бюджета на выезд (Ср.ЗП)*1,5 = | Q7: =Данные!K7 -> 67.5 | R7: + ндфл | S7: =Данные!L7 -> 27 | T7: руб | U7: (за месячную норму часов+переработки) | X7: =Данные!F7 -> direktor-184
A8: =CONCATENATE(B8," ",C8," ",D8," ",E8," ",F8," ",F36," ",G8,H8,", ",I8,", ",J8," ",K8,L8," ",M8," ",N8,O8," ",P8," ",Q8," ",R8," ",S8," ",T8," ",U8) -> Командировка ПК с 0 по 0, Смиронов Смирн, 8-888-117 (ср.30 ), Челябинск, в ФОТ для бюджета на выезд (Ср.ЗП)*1,5 = 45 + ндфл 15 руб (за месячную норму часов+переработки) | B8: Командировка | C8: =Данные!C8 -> ПК | D8: с | E8: =Данные!G8 -> 00:00:00 | F8: по | G8: =Данные!H8 -> 00:00:00 | I8: =Данные!B8 -> Смиронов Смирн | J8: =Данные!D8 -> 8-888-117 | K8: (ср. | L8: =Данные!I8 -> 30 | M8: ), | N8: =Данные!E8 -> Челябинск | O8: , | P8: в ФОТ для бюджета на выезд (Ср.ЗП)*1,5 = | Q8: =Данные!K8 -> 45 | R8: + ндфл | S8: =Данные!L8 -> 15 | T8: руб | U8: (за месячную норму часов+переработки) | X8: =Данные!F8 -> direktor-185
A9: =CONCATENATE(B9," ",C9," ",D9," ",E9," ",F9," ",F37," ",G9,H9,", ",I9,", ",J9," ",K9,L9," ",M9," ",N9,O9," ",P9," ",Q9," ",R9," ",S9," ",T9," ",U9) -> Командировка 0 с 0 по 0, ВАКАНТ, 8-888-118 (ср.0 ), 0, в ФОТ для бюджета на выезд (Ср.ЗП)*1,5 = 0 + ндфл 0 руб (за месячную норму часов+переработки) | B9: Командировка | C9: =Данные!C9 -> 0 | D9: с | E9: =Данные!G9 -> 00:00:00 | F9: по | G9: =Данные!H9 -> 00:00:00 | I9: =Данные!B9 -> ВАКАНТ | J9: =Данные!D9 -> 8-888-118 | K9: (ср. | L9: =Данные!I9 -> 0 | M9: ), | N9: =Данные!E9 -> 0 | O9: , | P9: в ФОТ для бюджета на выезд (Ср.ЗП)*1,5 = | Q9: =Данные!K9 -> 0 | R9: + ндфл | S9: =Данные!L9 -> 0 | T9: руб | U9: (за месячную норму часов+переработки) | X9: =Данные!F9 -> direktor-186
A10: =CONCATENATE(B10," ",C10," ",D10," ",E10," ",F10," ",F38," ",G10,H10,", ",I10,", ",J10," ",K10,L10," ",M10," ",N10,O10," ",P10," ",Q10," ",R10," ",S10," ",T10," ",U10) -> Командировка 0 с 0 по 0, ВАКАНТ, 8-888-119 (ср.0 ), 0, в ФОТ для бюджета на выезд (Ср.ЗП)*1,5 = 0 + ндфл 0 руб (за месячную норму часов+переработки) | B10: Командировка | C10: =Данные!C10 -> 0 | D10: с | E10: =Данные!G10 -> 00:00:00 | F10: по | G10: =Данные!H10 -> 00:00:00 | I10: =Данные!B10 -> ВАКАНТ | J10: =Данные!D10 -> 8-888-119 | K10: (ср. | L10: =Данные!I10 -> 0 | M10: ), | N10: =Данные!E10 -> 0 | O10: , | P10: в ФОТ для бюджета на выезд (Ср.ЗП)*1,5 = | Q10: =Данные!K10 -> 0 | R10: + ндфл | S10: =Данные!L10 -> 0 | T10: руб | U10: (за месячную норму часов+переработки) | X10: =Данные!F10 -> direktor-187
A11: =CONCATENATE(B11," ",C11," ",D11," ",E11," ",F11," ",F39," ",G11,H11,", ",I11,", ",J11," ",K11,L11," ",M11," ",N11,O11," ",P11," ",Q11," ",R11," ",S11," ",T11," ",U11) -> Командировка ПК с 0 по 0, Вика, 8-888-120 (ср.43 ), Новосибирск, в ФОТ для бюджета на выезд (Ср.ЗП)*1,5 = 64,5 + ндфл 21 руб (за месячную норму часов+переработки) | B11: Командировка | C11: =Данные!C11 -> ПК | D11: с | E11: =Данные!G11 -> 00:00:00 | F11: по | G11: =Данные!H11 -> 00:00:00 | I11: =Данные!B11 -> Вика | J11: =Данные!D11 -> 8-888-120 | K11: (ср. | L11: =Данные!I11 -> 43 | M11: ), | N11: =Данные!E11 -> Новосибирск | O11: , | P11: в ФОТ для бюджета на выезд (Ср.ЗП)*1,5 = | Q11: =Данные!K11 -> 64.5 | R11: + ндфл | S11: =Данные!L11 -> 21 | T11: руб | U11: (за месячную норму часов+переработки) | X11: =Данные!F11 -> direktor-188
A12: =CONCATENATE(B12," ",C12," ",D12," ",E12," ",F12," ",F40," ",G12,H12,", ",I12,", ",J12," ",K12,L12," ",M12," ",N12,O12," ",P12," ",Q12," ",R12," ",S12," ",T12," ",U12) -> Командировка ЗУМ с 0 по 0, Светлогор, 8-888-121 (ср.55 ), Новокузнецк, в ФОТ для бюджета на выезд (Ср.ЗП)*1,5 = 82,5 + ндфл 2 руб (за месячную норму часов+переработки) | B12: Командировка | C12: =Данные!C12 -> ЗУМ | D12: с | E12: =Данные!G12 -> 00:00:00 | F12: по | G12: =Данные!H12 -> 00:00:00 | I12: =Данные!B12 -> Светлогор | J12: =Данные!D12 -> 8-888-121 | K12: (ср. | L12: =Данные!I12 -> 55 | M12: ), | N12: =Данные!E12 -> Новокузнецк | O12: , | P12: в ФОТ для бюджета на выезд (Ср.ЗП)*1,5 = | Q12: =Данные!K12 -> 82.5 | R12: + ндфл | S12: =Данные!L12 -> 2 | T12: руб | U12: (за месячную норму часов+переработки) | X12: =Данные!F12 -> direktor-189
A13: =CONCATENATE(B13," ",C13," ",D13," ",E13," ",F13," ",F41," ",G13,H13,", ",I13,", ",J13," ",K13,L13," ",M13," ",N13,O13," ",P13," ",Q13," ",R13," ",S13," ",T13," ",U13) -> Командировка 0 с 0 по 0, ВАКАНТ, 8-888-122 (ср.0 ), 0, в ФОТ для бюджета на выезд (Ср.ЗП)*1,5 = 0 + ндфл 0 руб (за месячную норму часов+переработки) | B13: Командировка | C13: =Данные!C13 -> 0 | D13: с | E13: =Данные!G13 -> 00:00:00 | F13: по | G13: =Данные!H13 -> 00:00:00 | I13: =Данные!B13 -> ВАКАНТ | J13: =Данные!D13 -> 8-888-122 | K13: (ср. | L13: =Данные!I13 -> 0 | M13: ), | N13: =Данные!E13 -> 0 | O13: , | P13: в ФОТ для бюджета на выезд (Ср.ЗП)*1,5 = | Q13: =Данные!K13 -> 0 | R13: + ндфл | S13: =Данные!L13 -> 0 | T13: руб | U13: (за месячную норму часов+переработки) | X13: =Данные!F13 -> direktor-190
A14: =CONCATENATE(B14," ",C14," ",D14," ",E14," ",F14," ",F42," ",G14,H14,", ",I14,", ",J14," ",K14,L14," ",M14," ",N14,O14," ",P14," ",Q14," ",R14," ",S14," ",T14," ",U14) -> Командировка Кладовщик с 15.01 по 08.02, Грачев Грач, 8-888-123 (ср.46 ), Москва, в ФОТ для бюджета на выезд (Ср.ЗП)*1,5 = 69 + ндфл 2 руб (за месячную норму часов+переработки) | B14: Командировка | C14: =Данные!C14 -> Кладовщик | D14: с | E14: =Данные!G14 -> 15.01 | F14: по | G14: =Данные!H14 -> 08.02 | I14: =Данные!B14 -> Грачев Грач | J14: =Данные!D14 -> 8-888-123 | K14: (ср. | L14: =Данные!I14 -> 46 | M14: ), | N14: =Данные!E14 -> Москва | O14: , | P14: в ФОТ для бюджета на выезд (Ср.ЗП)*1,5 = | Q14: =Данные!K14 -> 69 | R14: + ндфл | S14: =Данные!L14 -> 2 | T14: руб | U14: (за месячную норму часов+переработки) | X14: =Данные!F14 -> direktor-191
A15: =CONCATENATE(B15," ",C15," ",D15," ",E15," ",F15," ",F43," ",G15,H15,", ",I15,", ",J15," ",K15,L15," ",M15," ",N15,O15," ",P15," ",Q15," ",R15," ",S15," ",T15," ",U15) -> Командировка 0 с 0 по 0, Карпов Карп, 8-888-124 (ср.26 ), 0, в ФОТ для бюджета на выезд (Ср.ЗП)*1,5 = 39 + ндфл 2 руб (за месячную норму часов+переработки) | B15: Командировка | C15: =Данные!C15 -> 0 | D15: с | E15: =Данные!G15 -> 00:00:00 | F15: по | G15: =Данные!H15 -> 00:00:00 | I15: =Данные!B15 -> Карпов Карп | J15: =Данные!D15 -> 8-888-124 | K15: (ср. | L15: =Данные!I15 -> 26 | M15: ), | N15: =Данные!E15 -> 0 | O15: , | P15: в ФОТ для бюджета на выезд (Ср.ЗП)*1,5 = | Q15: =Данные!K15 -> 39 | R15: + ндфл | S15: =Данные!L15 -> 2 | T15: руб | U15: (за месячную норму часов+переработки) | X15: =Данные!F15 -> direktor-192
A16: =CONCATENATE(B16," ",C16," ",D16," ",E16," ",F16," ",F44," ",G16,H16,", ",I16,", ",J16," ",K16,L16," ",M16," ",N16,O16," ",P16," ",Q16," ",R16," ",S16," ",T16," ",U16) -> Командировка 0 с 0 по 0, ВАКАНТ, 8-888-125 (ср.0 ), 0, в ФОТ для бюджета на выезд (Ср.ЗП)*1,5 = 0 + ндфл 0 руб (за месячную норму часов+переработки) | B16: Командировка | C16: =Данные!C16 -> 0 | D16: с | E16: =Данные!G16 -> 00:00:00 | F16: по | G16: =Данные!H16 -> 00:00:00 | I16: =Данные!B16 -> ВАКАНТ | J16: =Данные!D16 -> 8-888-125 | K16: (ср. | L16: =Данные!I16 -> 0 | M16: ), | N16: =Данные!E16 -> 0 | O16: , | P16: в ФОТ для бюджета на выезд (Ср.ЗП)*1,5 = | Q16: =Данные!K16 -> 0 | R16: + ндфл | S16: =Данные!L16 -> 0 | T16: руб | U16: (за месячную норму часов+переработки) | X16: =Данные!F16 -> direktor-193
A17: =CONCATENATE(B17," ",C17," ",D17," ",E17," ",F17," ",F45," ",G17,H17,", ",I17,", ",J17," ",K17,L17," ",M17," ",N17,O17," ",P17," ",Q17," ",R17," ",S17," ",T17," ",U17) -> Командировка 0 с 0 по 0, ВАКАНТ, 8-888-126 (ср.0 ), 0, в ФОТ для бюджета на выезд (Ср.ЗП)*1,5 = 0 + ндфл 0 руб (за месячную норму часов+переработки) | B17: Командировка | C17: =Данные!C17 -> 0 | D17: с | E17: =Данные!G17 -> 00:00:00 | F17: по | G17: =Данные!H17 -> 00:00:00 | I17: =Данные!B17 -> ВАКАНТ | J17: =Данные!D17 -> 8-888-126 | K17: (ср. | L17: =Данные!I17 -> 0 | M17: ), | N17: =Данные!E17 -> 0 | O17: , | P17: в ФОТ для бюджета на выезд (Ср.ЗП)*1,5 = | Q17: =Данные!K17 -> 0 | R17: + ндфл | S17: =Данные!L17 -> 0 | T17: руб | U17: (за месячную норму часов+переработки) | X17: =Данные!F17 -> direktor-194
A18: =CONCATENATE(B18," ",C18," ",D18," ",E18," ",F18," ",F46," ",G18,H18,", ",I18,", ",J18," ",K18,L18," ",M18," ",N18,O18," ",P18," ",Q18," ",R18," ",S18," ",T18," ",U18) -> Командировка 0 с 15.01 по 08.02, ВАКАНТ, 8-888-127 (ср.0 ), 0, в ФОТ для бюджета на выезд (Ср.ЗП)*1,5 = 0 + ндфл 0 руб (за месячную норму часов+переработки) | B18: Командировка | C18: =Данные!C18 -> 0 | D18: с | E18: =Данные!G18 -> 15.01 | F18: по | G18: =Данные!H18 -> 08.02 | I18: =Данные!B18 -> ВАКАНТ | J18: =Данные!D18 -> 8-888-127 | K18: (ср. | L18: =Данные!I18 -> 0 | M18: ), | N18: =Данные!E18 -> 0 | O18: , | P18: в ФОТ для бюджета на выезд (Ср.ЗП)*1,5 = | Q18: =Данные!K18 -> 0 | R18: + ндфл | S18: =Данные!L18 -> 0 | T18: руб | U18: (за месячную норму часов+переработки) | X18: =Данные!F18 -> direktor-195
A19: =CONCATENATE(B19," ",C19," ",D19," ",E19," ",F19," ",F47," ",G19,H19,", ",I19,", ",J19," ",K19,L19," ",M19," ",N19,O19," ",P19," ",Q19," ",R19," ",S19," ",T19," ",U19) -> Командировка Ст. кладовщик с 0 по 0, Митя, 8-888-128 (ср.40 ), С.-Петербург, в ФОТ для бюджета на выезд (Ср.ЗП)*1,5 = 60 + ндфл 2 руб (за месячную норму часов+переработки) | B19: Командировка | C19: =Данные!C19 -> Ст. кладовщик | D19: с | E19: =Данные!G19 -> 00:00:00 | F19: по | G19: =Данные!H19 -> 00:00:00 | I19: =Данные!B19 -> Митя | J19: =Данные!D19 -> 8-888-128 | K19: (ср. | L19: =Данные!I19 -> 40 | M19: ), | N19: =Данные!E19 -> С.-Петербург | O19: , | P19: в ФОТ для бюджета на выезд (Ср.ЗП)*1,5 = | Q19: =Данные!K19 -> 60 | R19: + ндфл | S19: =Данные!L19 -> 2 | T19: руб | U19: (за месячную норму часов+переработки) | X19: =Данные!F19 -> direktor-196
A20: =CONCATENATE(B20," ",C20," ",D20," ",E20," ",F20," ",F48," ",G20,H20,", ",I20,", ",J20," ",K20,L20," ",M20," ",N20,O20," ",P20," ",Q20," ",R20," ",S20," ",T20," ",U20) -> Командировка Ст. кладовщик с 0 по 0, Настя, 8-888-129 (ср.41 ), Екатеринбург, в ФОТ для бюджета на выезд (Ср.ЗП)*1,5 = 61,5 + ндфл 22 руб (за месячную норму часов+переработки) | B20: Командировка | C20: =Данные!C20 -> Ст. кладовщик | D20: с | E20: =Данные!G20 -> 00:00:00 | F20: по | G20: =Данные!H20 -> 00:00:00 | I20: =Данные!B20 -> Настя | J20: =Данные!D20 -> 8-888-129 | K20: (ср. | L20: =Данные!I20 -> 41 | M20: ), | N20: =Данные!E20 -> Екатеринбург | O20: , | P20: в ФОТ для бюджета на выезд (Ср.ЗП)*1,5 = | Q20: =Данные!K20 -> 61.5 | R20: + ндфл | S20: =Данные!L20 -> 22 | T20: руб | U20: (за месячную норму часов+переработки) | X20: =Данные!F20 -> direktor-197
A21: =CONCATENATE(B21," ",C21," ",D21," ",E21," ",F21," ",F49," ",G21,H21,", ",I21,", ",J21," ",K21,L21," ",M21," ",N21,O21," ",P21," ",Q21," ",R21," ",S21," ",T21," ",U21) -> Командировка Ст.кладовщик с 0 по 0, Коля, 8-888-130 (ср.39 ), Москва, в ФОТ для бюджета на выезд (Ср.ЗП)*1,5 = 58,5 + ндфл 2 руб (за месячную норму часов+переработки) | B21: Командировка | C21: =Данные!C21 -> Ст.кладовщик | D21: с | E21: =Данные!G21 -> 00:00:00 | F21: по | G21: =Данные!H21 -> 00:00:00 | I21: =Данные!B21 -> Коля | J21: =Данные!D21 -> 8-888-130 | K21: (ср. | L21: =Данные!I21 -> 39 | M21: ), | N21: =Данные!E21 -> Москва | O21: , | P21: в ФОТ для бюджета на выезд (Ср.ЗП)*1,5 = | Q21: =Данные!K21 -> 58.5 | R21: + ндфл | S21: =Данные!L21 -> 2 | T21: руб | U21: (за месячную норму часов+переработки) | X21: =Данные!F21 -> direktor-198
A22: =CONCATENATE(B22," ",C22," ",D22," ",E22," ",F22," ",F50," ",G22,H22,", ",I22,", ",J22," ",K22,L22," ",M22," ",N22,O22," ",P22," ",Q22," ",R22," ",S22," ",T22," ",U22) -> Командировка Ст.кладовщик с 0 по 0, Игорь, 8-888-131 (ср.24 ), Москва, в ФОТ для бюджета на выезд (Ср.ЗП)*1,5 = 36 + ндфл 3 руб (за месячную норму часов+переработки) | B22: Командировка | C22: =Данные!C22 -> Ст.кладовщик | D22: с | E22: =Данные!G22 -> 00:00:00 | F22: по | G22: =Данные!H22 -> 00:00:00 | I22: =Данные!B22 -> Игорь | J22: =Данные!D22 -> 8-888-131 | K22: (ср. | L22: =Данные!I22 -> 24 | M22: ), | N22: =Данные!E22 -> Москва | O22: , | P22: в ФОТ для бюджета на выезд (Ср.ЗП)*1,5 = | Q22: =Данные!K22 -> 36 | R22: + ндфл | S22: =Данные!L22 -> 3 | T22: руб | U22: (за месячную норму часов+переработки) | X22: =Данные!F22 -> direktor-199
A23: =CONCATENATE(B23," ",C23," ",D23," ",E23," ",F23," ",F51," ",G23,H23,", ",I23,", ",J23," ",K23,L23," ",M23," ",N23,O23," ",P23," ",Q23," ",R23," ",S23," ",T23," ",U23) -> Командировка Кладовщик с 0 по 0, Викор, 8-888-132 (ср.35 ), Тагил, в ФОТ для бюджета на выезд (Ср.ЗП)*1,5 = 52,5 + ндфл 1,7 руб (за месячную норму часов+переработки) | B23: Командировка | C23: =Данные!C23 -> Кладовщик | D23: с | E23: =Данные!G23 -> 00:00:00 | F23: по | G23: =Данные!H23 -> 00:00:00 | I23: =Данные!B23 -> Викор | J23: =Данные!D23 -> 8-888-132 | K23: (ср. | L23: =Данные!I23 -> 35 | M23: ), | N23: =Данные!E23 -> Тагил | O23: , | P23: в ФОТ для бюджета на выезд (Ср.ЗП)*1,5 = | Q23: =Данные!K23 -> 52.5 | R23: + ндфл | S23: =Данные!L23 -> 1.7 | T23: руб | U23: (за месячную норму часов+переработки) | X23: =Данные!F23 -> direktor-200
A24: =CONCATENATE(B24," ",C24," ",D24," ",E24," ",F24," ",F52," ",G24,H24,", ",I24,", ",J24," ",K24,L24," ",M24," ",N24,O24," ",P24," ",Q24," ",R24," ",S24," ",T24," ",U24) -> Командировка ст.кладовщик с 0 по 0, Дима, 8-888-133 (ср.25 ), Томск, в ФОТ для бюджета на выезд (Ср.ЗП)*1,5 = 37,5 + ндфл 2 руб (за месячную норму часов+переработки) | B24: Командировка | C24: =Данные!C24 -> ст.кладовщик | D24: с | E24: =Данные!G24 -> 00:00:00 | F24: по | G24: =Данные!H24 -> 00:00:00 | I24: =Данные!B24 -> Дима | J24: =Данные!D24 -> 8-888-133 | K24: (ср. | L24: =Данные!I24 -> 25 | M24: ), | N24: =Данные!E24 -> Томск | O24: , | P24: в ФОТ для бюджета на выезд (Ср.ЗП)*1,5 = | Q24: =Данные!K24 -> 37.5 | R24: + ндфл | S24: =Данные!L24 -> 2 | T24: руб | U24: (за месячную норму часов+переработки) | X24: =Данные!F24 -> direktor-201
A25: =CONCATENATE(B25," ",C25," ",D25," ",E25," ",F25," ",F53," ",G25,H25,", ",I25,", ",J25," ",K25,L25," ",M25," ",N25,O25," ",P25," ",Q25," ",R25," ",S25," ",T25," ",U25) -> Командировка ст.кладовщик с 0 по 0, Саша, 8-888-134 (ср.14 ), Ставрополь, в ФОТ для бюджета на выезд (Ср.ЗП)*1,5 = 21 + ндфл 3 руб (за месячную норму часов+переработки) | B25: Командировка | C25: =Данные!C25 -> ст.кладовщик | D25: с | E25: =Данные!G25 -> 00:00:00 | F25: по | G25: =Данные!H25 -> 00:00:00 | I25: =Данные!B25 -> Саша | J25: =Данные!D25 -> 8-888-134 | K25: (ср. | L25: =Данные!I25 -> 14 | M25: ), | N25: =Данные!E25 -> Ставрополь | O25: , | P25: в ФОТ для бюджета на выезд (Ср.ЗП)*1,5 = | Q25: =Данные!K25 -> 21 | R25: + ндфл | S25: =Данные!L25 -> 3 | T25: руб | U25: (за месячную норму часов+переработки) | X25: =Данные!F25 -> direktor-202
A28: Письмо
A30: =CONCATENATE(B30, CHAR(10),B33,CHAR(10),B34,CHAR(10),B35,CHAR(10),B36,CHAR(10),B37,CHAR(10),B38,CHAR(10),B39,CHAR(10),B40,CHAR(10),B41,CHAR(10),B42,CHAR(10),B43,CHAR(10),B44,CHAR(10),B45,CHAR(10),B46,CHAR(10),B47,CHAR(10),B48,CHAR(10),B49,CHAR(10),B50,CHAR(10),B51,CHAR(10),B52,CHAR(10),B53,CHAR(10),B54,CHAR(10),B55,CHAR(10),B56, CHAR(10),B31,B32,) -> Уважаемые Управляющие, довожу до вашего сведения о предстоящей командировке ваших сотрудников: Петров Петр с 15.01 по 08.02 direktor-179 Иванов Иван с 0 по 0 direktor-180 Сидоров Сидр с 0 по 0 direktor-181 Василий Алибабаевич с 0 по 0 direktor-182 Доцент с 0 по 0 direktor-183 Котов Кот с 0 по 0 direktor-184 Смиронов Смирн с 0 по 0 direktor-185 ВАКАНТ с 0 по 0 direktor-186 ВАКАНТ с 0 по 0 direktor-187 Вика с 0 по 0 direktor-188 Светлогор с 0 по 0 direktor-189 ВАКАНТ с 0 по 0 direktor-190 Грачев Грач с 15.01 по 08.02 direktor-191 Карпов Карп с 0 по 0 direktor-192 ВАКАНТ с 0 по 0 direktor-193 ВАКАНТ с 0 по 0 direktor-194 ВАКАНТ с 15.01 по 08.02 direktor-195 Митя с 0 по 0 direktor-196 Настя с 0 по 0 direktor-197 Коля с 0 по 0 direktor-198 Игорь с 0 по 0 direktor-199 Викор с 0 по 0 direktor-200 Дима с 0 по 0 direktor-201 Саша с 0 по 0 direktor-202 Даты указаны без учета затраченного времени на дорогу к месту командировки и возвращения из нее: только даты приезда на проект и отъезда с него. Точную дату выезда в командировку и дату возвращения из нее Ваш сотрудник предоставит после покупки билетов. Необходимо учесть данный интервал дат при составлении табеля рабочего времени в Вашем магазине: один день до и два дня после обязательные выходные! Прошу подтвердить получение данного письма. | B30: Уважаемые Управляющие, довожу до вашего сведения о предстоящей командировке ваших сотрудников:
B31: Даты указаны без учета затраченного времени на дорогу к месту командировки и возвращения из нее: только даты приезда на проект и отъезда с него. Точную дату выезда в командировку и дату возвращения из нее Ваш сотрудник предоставит после покупки билетов. Необходимо учесть данный интервал дат при составлении табеля рабочего времени в Вашем магазине: один день до и два дня после обязательные выходные!
B32: Прошу подтвердить получение данного письма.
B33: =CONCATENATE(I2," ",D2," ",E2," ",F2," ",G2," "," "," "," "," "," "," ",X2," ",Y2) -> Петров Петр с 15.01 по 08.02 direktor-179
B34: =CONCATENATE(I3," ",D3," ",E3," ",F3," ",G3," "," "," "," "," "," "," ",X3," ",Y3) -> Иванов Иван с 0 по 0 direktor-180
B35: =CONCATENATE(I4," ",D4," ",E4," ",F4," ",G4," "," "," "," "," "," "," ",X4," ",Y4) -> Сидоров Сидр с 0 по 0 direktor-181
B36: =CONCATENATE(I5," ",D5," ",E5," ",F5," ",G5," "," "," "," "," "," "," ",X5," ",Y5) -> Василий Алибабаевич с 0 по 0 direktor-182
B37: =CONCATENATE(I6," ",D6," ",E6," ",F6," ",G6," "," "," "," "," "," "," ",X6," ",Y6) -> Доцент с 0 по 0 direktor-183
B38: =CONCATENATE(I7," ",D7," ",E7," ",F7," ",G7," "," "," "," "," "," "," ",X7," ",Y7) -> Котов Кот с 0 по 0 direktor-184
B39: =CONCATENATE(I8," ",D8," ",E8," ",F8," ",G8," "," "," "," "," "," "," ",X8," ",Y8) -> Смиронов Смирн с 0 по 0 direktor-185
B40: =CONCATENATE(I9," ",D9," ",E9," ",F9," ",G9," "," "," "," "," "," "," ",X9," ",Y9) -> ВАКАНТ с 0 по 0 direktor-186
B41: =CONCATENATE(I10," ",D10," ",E10," ",F10," ",G10," "," "," "," "," "," "," ",X10," ",Y10) -> ВАКАНТ с 0 по 0 direktor-187
B42: =CONCATENATE(I11," ",D11," ",E11," ",F11," ",G11," "," "," "," "," "," "," ",X11," ",Y11) -> Вика с 0 по 0 direktor-188
B43: =CONCATENATE(I12," ",D12," ",E12," ",F12," ",G12," "," "," "," "," "," "," ",X12," ",Y12) -> Светлогор с 0 по 0 direktor-189
B44: =CONCATENATE(I13," ",D13," ",E13," ",F13," ",G13," "," "," "," "," "," "," ",X13," ",Y13) -> ВАКАНТ с 0 по 0 direktor-190
B45: =CONCATENATE(I14," ",D14," ",E14," ",F14," ",G14," "," "," "," "," "," "," ",X14," ",Y14) -> Грачев Грач с 15.01 по 08.02 direktor-191
B46: =CONCATENATE(I15," ",D15," ",E15," ",F15," ",G15," "," "," "," "," "," "," ",X15," ",Y15) -> Карпов Карп с 0 по 0 direktor-192
B47: =CONCATENATE(I16," ",D16," ",E16," ",F16," ",G16," "," "," "," "," "," "," ",X16," ",Y16) -> ВАКАНТ с 0 по 0 direktor-193
B48: =CONCATENATE(I17," ",D17," ",E17," ",F17," ",G17," "," "," "," "," "," "," ",X17," ",Y17) -> ВАКАНТ с 0 по 0 direktor-194
B49: =CONCATENATE(I18," ",D18," ",E18," ",F18," ",G18," "," "," "," "," "," "," ",X18," ",Y18) -> ВАКАНТ с 15.01 по 08.02 direktor-195
B50: =CONCATENATE(I19," ",D19," ",E19," ",F19," ",G19," "," "," "," "," "," "," ",X19," ",Y19) -> Митя с 0 по 0 direktor-196
B51: =CONCATENATE(I20," ",D20," ",E20," ",F20," ",G20," "," "," "," "," "," "," ",X20," ",Y20) -> Настя с 0 по 0 direktor-197
B52: =CONCATENATE(I21," ",D21," ",E21," ",F21," ",G21," "," "," "," "," "," "," ",X21," ",Y21) -> Коля с 0 по 0 direktor-198
B53: =CONCATENATE(I22," ",D22," ",E22," ",F22," ",G22," "," "," "," "," "," "," ",X22," ",Y22) -> Игорь с 0 по 0 direktor-199
B54: =CONCATENATE(I23," ",D23," ",E23," ",F23," ",G23," "," "," "," "," "," "," ",X23," ",Y23) -> Викор с 0 по 0 direktor-200
B55: =CONCATENATE(I24," ",D24," ",E24," ",F24," ",G24," "," "," "," "," "," "," ",X24," ",Y24) -> Дима с 0 по 0 direktor-201
B56: =CONCATENATE(I25," ",D25," ",E25," ",F25," ",G25," "," "," "," "," "," "," ",X25," ",Y25) -> Саша с 0 по 0 direktor-202
